[Event "Betsys MČR v online bleskovém šachu 2021"]
[Site "Chess.com"]
[Date "2021.04.17"]
[Round "9"]
[White "PetrSoucek"]
[Black "Nimrod64"]
[Result "1-0"]
[WhiteElo "2017"]
[BlackElo "2239"]
[TimeControl "180+1"]
[EndTime "10:29:44 PDT"]
[Termination "Uživatel PetrSoucek zvítězil po vzdání soupeře"]

1. e4 {[%clk 0:03:00.9]} 1... c5 {[%clk 0:02:59.6]} 2. a3 {[%clk 0:02:58.8]}
2... d6 {[%clk 0:02:58.4]} 3. b4 {[%clk 0:02:59.7]} 3... Nf6 {[%clk 0:02:54.3]}
4. Nc3 {[%clk 0:02:57.2]} 4... cxb4 {[%clk 0:02:44.4]} 5. axb4 {[%clk
0:02:58.1]} 5... g6 {[%clk 0:02:42]} 6. h4 {[%clk 0:02:56.6]} 6... Bg7 {[%clk
0:02:41.6]} 7. Bc4 {[%clk 0:02:56]} 7... O-O {[%clk 0:02:40.5]} 8. h5 {[%clk
0:02:55.5]} 8... Nxh5 {[%clk 0:02:37.7]} 9. Rxh5 {[%clk 0:02:55.1]} 9... gxh5
{[%clk 0:02:37.2]} 10. Qxh5 {[%clk 0:02:54.6]} 10... Be6 {[%clk 0:02:36.9]} 11.
Bd3 {[%clk 0:02:48.2]} 11... h6 {[%clk 0:02:26.5]} 12. Nf3 {[%clk 0:02:45.9]}
12... Nc6 {[%clk 0:02:18.8]} 13. Ba3 {[%clk 0:02:41.8]} 13... a5 {[%clk
0:02:07]} 14. b5 {[%clk 0:02:35.1]} 14... Nb4 {[%clk 0:02:06.1]} 15. Ke2 {[%clk
0:02:31.5]} 15... Qb6 {[%clk 0:01:59.5]} 16. g4 {[%clk 0:02:26.8]} 16... f6
{[%clk 0:01:48.3]} 17. Bxb4 {[%clk 0:02:11]} 17... axb4 {[%clk 0:01:45.2]} 18.
Rxa8 {[%clk 0:02:11.4]} 18... Rxa8 {[%clk 0:01:42.6]} 19. Nd5 {[%clk 0:02:10.9]}
19... Qd8 {[%clk 0:01:40.3]} 20. Nd4 {[%clk 0:01:53.4]} 20... Bf7 {[%clk
0:01:37.9]} 21. Qf5 {[%clk 0:01:48.1]} 21... Kf8 {[%clk 0:00:56.1]} 22. Bc4
{[%clk 0:01:37.1]} 22... Qc8 {[%clk 0:00:50.4]} 23. Qxc8+ {[%clk 0:01:26.1]}
23... Rxc8 {[%clk 0:00:48.9]} 24. Bb3 {[%clk 0:01:25.2]} 24... e6 {[%clk
0:00:41.4]} 25. Nb6 {[%clk 0:01:21.8]} 25... Re8 {[%clk 0:00:38.9]} 26. f4
{[%clk 0:01:12.2]} 26... Ke7 {[%clk 0:00:38]} 27. f5 {[%clk 0:01:05.6]} 27...
exf5 {[%clk 0:00:32.8]} 28. Nxf5+ {[%clk 0:01:01.7]} 28... Kf8 {[%clk
0:00:30.6]} 29. Bxf7 {[%clk 0:00:59.7]} 29... Rxe4+ {[%clk 0:00:28.6]} 30. Kf3
{[%clk 0:00:56.8]} 30... Re5 {[%clk 0:00:26]} 31. Bc4 {[%clk 0:00:52.3]} 31...
h5 {[%clk 0:00:24.7]} 32. Nd7+ {[%clk 0:00:52.2]} 32... Ke8 {[%clk 0:00:21.6]}
33. Nxe5 {[%clk 0:00:53.1]} 33... dxe5 {[%clk 0:00:19.4]} 34. Nxg7+ {[%clk
0:00:52.3]} 34... Kd7 {[%clk 0:00:17.7]} 35. Nxh5 {[%clk 0:00:53.2]} 35... Ke7
{[%clk 0:00:16.7]} 36. Ke4 {[%clk 0:00:53.4]} 1-0

[Event "Betsys MČR v online bleskovém šachu 2021"]
[Site "Chess.com"]
[Date "2021.04.17"]
[Round "9"]
[White "BRNOTEACHER"]
[Black "Zavurka1975"]
[Result "1-0"]
[WhiteElo "2354"]
[BlackElo "2205"]
[TimeControl "180+1"]
[EndTime "10:29:46 PDT"]
[Termination "Uživatel BRNOTEACHER zvítězil po vzdání soupeře"]

1. d4 {[%clk 0:03:00.9]} 1... Nf6 {[%clk 0:02:59.1]} 2. c4 {[%clk 0:03:00.4]}
2... d6 {[%clk 0:02:59.2]} 3. Nc3 {[%clk 0:02:59.9]} 3... Nbd7 {[%clk
0:02:59.3]} 4. Nf3 {[%clk 0:02:59.4]} 4... e5 {[%clk 0:02:59.3]} 5. e4 {[%clk
0:02:58.7]} 5... Be7 {[%clk 0:02:58.7]} 6. Be2 {[%clk 0:02:54.6]} 6... O-O
{[%clk 0:02:58.4]} 7. O-O {[%clk 0:02:53.6]} 7... c6 {[%clk 0:02:58.5]} 8. h3
{[%clk 0:02:46.4]} 8... a6 {[%clk 0:02:58.4]} 9. Be3 {[%clk 0:02:37]} 9... b5
{[%clk 0:02:58.2]} 10. cxb5 {[%clk 0:02:34.8]} 10... cxb5 {[%clk 0:02:55.2]} 11.
dxe5 {[%clk 0:02:28.7]} 11... dxe5 {[%clk 0:02:51.4]} 12. a4 {[%clk 0:02:27.9]}
12... b4 {[%clk 0:02:46.1]} 13. Nd5 {[%clk 0:02:27.8]} 13... Nxe4 {[%clk
0:02:42.2]} 14. Nxe7+ {[%clk 0:02:19.6]} 14... Qxe7 {[%clk 0:02:41]} 15. Qd5
{[%clk 0:02:19]} 15... Nec5 {[%clk 0:02:01.4]} 16. Bxc5 {[%clk 0:01:43.9]} 16...
Nxc5 {[%clk 0:01:56.3]} 17. Qxa8 {[%clk 0:01:20.7]} 17... Bb7 {[%clk 0:00:42.9]}
18. Qa7 {[%clk 0:01:20.1]} 18... e4 {[%clk 0:00:36.7]} 19. Nd4 {[%clk
0:00:58.2]} 19... e3 {[%clk 0:00:21]} 20. Bf3 {[%clk 0:00:44.4]} 20... exf2+
{[%clk 0:00:11.2]} 21. Rxf2 {[%clk 0:00:43.3]} 21... Ra8 {[%clk 0:00:09.8]} 22.
Qb6 {[%clk 0:00:42.5]} 22... Bxf3 {[%clk 0:00:07.7]} 23. Nxf3 {[%clk 0:00:40.5]}
23... Nd3 {[%clk 0:00:06.8]} 24. Rd2 {[%clk 0:00:38.2]} 24... Qe3+ {[%clk
0:00:05.6]} 25. Qxe3 {[%clk 0:00:37.2]} 1-0

[Event "Betsys MČR v online bleskovém šachu 2021"]
[Site "Chess.com"]
[Date "2021.04.17"]
[Round "9"]
[White "Danyjel"]
[Black "Fafin1"]
[Result "1-0"]
[WhiteElo "1697"]
[BlackElo "1367"]
[TimeControl "180+1"]
[EndTime "10:29:46 PDT"]
[Termination "Uživatel Danyjel zvítězil po vzdání soupeře"]

1. e4 {[%clk 0:03:00.5]} 1... e5 {[%clk 0:02:58.7]} 2. Nf3 {[%clk 0:03:00.2]}
2... d6 {[%clk 0:02:57.1]} 3. Bc4 {[%clk 0:02:59.2]} 3... Bg4 {[%clk 0:02:54.4]}
4. d3 {[%clk 0:02:58.2]} 4... h6 {[%clk 0:02:52.6]} 5. c3 {[%clk 0:02:57.7]}
5... Nf6 {[%clk 0:02:52.1]} 6. O-O {[%clk 0:02:57]} 6... Be7 {[%clk 0:02:50.1]}
7. Re1 {[%clk 0:02:56.6]} 7... O-O {[%clk 0:02:46.9]} 8. Nbd2 {[%clk 0:02:56.6]}
8... c5 {[%clk 0:02:46.5]} 9. Nf1 {[%clk 0:02:56.1]} 9... Nc6 {[%clk 0:02:45.2]}
10. h3 {[%clk 0:02:53.1]} 10... Bh5 {[%clk 0:02:43.1]} 11. Ng3 {[%clk
0:02:53.1]} 11... Bg6 {[%clk 0:02:34.5]} 12. Nh4 {[%clk 0:02:52.9]} 12... Bh7
{[%clk 0:02:29.3]} 13. Nhf5 {[%clk 0:02:52.4]} 13... Bxf5 {[%clk 0:02:27]} 14.
Nxf5 {[%clk 0:02:51.9]} 14... Kh7 {[%clk 0:02:19.7]} 15. Qf3 {[%clk 0:02:49.3]}
15... g6 {[%clk 0:02:11.9]} 16. Nxh6 {[%clk 0:02:48.1]} 16... Kg7 {[%clk
0:01:53.2]} 17. Qg3 {[%clk 0:02:11.8]} 17... Na5 {[%clk 0:01:50.5]} 18. Bb5
{[%clk 0:02:05.9]} 18... a6 {[%clk 0:01:48.6]} 19. Ba4 {[%clk 0:02:05.7]} 19...
b5 {[%clk 0:01:48]} 20. Bc2 {[%clk 0:02:05.7]} 20... c4 {[%clk 0:01:45.7]} 21.
Nf5+ {[%clk 0:01:48]} 21... Kh7 {[%clk 0:01:34.9]} 22. Qh4+ {[%clk 0:01:43.1]}
22... Nh5 {[%clk 0:01:31.3]} 23. Nxe7 {[%clk 0:01:39.6]} 23... Ra7 {[%clk
0:01:20.7]} 24. g4 {[%clk 0:01:20.2]} 24... Qxe7 {[%clk 0:01:00.7]} 25. Qxe7
{[%clk 0:01:19.1]} 25... Rxe7 {[%clk 0:00:59.1]} 26. gxh5 {[%clk 0:01:19]} 26...
gxh5 {[%clk 0:00:58.6]} 27. Kh2 {[%clk 0:01:18.3]} 27... Rg8 {[%clk 0:00:55.8]}
28. Be3 {[%clk 0:01:17.4]} 28... f6 {[%clk 0:00:50.9]} 29. Rg1 {[%clk
0:01:16.9]} 29... Reg7 {[%clk 0:00:50]} 30. Rxg7+ {[%clk 0:01:14.5]} 30... Rxg7
{[%clk 0:00:48.4]} 31. Rg1 {[%clk 0:01:14.2]} 31... Nc6 {[%clk 0:00:46.4]} 32.
Rxg7+ {[%clk 0:01:13.8]} 32... Kxg7 {[%clk 0:00:45.3]} 33. dxc4 {[%clk
0:01:13.9]} 33... bxc4 {[%clk 0:00:43.7]} 34. b3 {[%clk 0:01:10.5]} 34... cxb3
{[%clk 0:00:42.1]} 35. axb3 {[%clk 0:01:07.9]} 35... Ne7 {[%clk 0:00:36]} 36. b4
{[%clk 0:01:07]} 36... Kg6 {[%clk 0:00:26.4]} 37. Bd3 {[%clk 0:01:07]} 37... a5
{[%clk 0:00:22]} 38. bxa5 {[%clk 0:01:06.6]} 38... Nc6 {[%clk 0:00:21.7]} 39. a6
{[%clk 0:01:05.4]} 1-0

[Event "Betsys MČR v online bleskovém šachu 2021"]
[Site "Chess.com"]
[Date "2021.04.17"]
[Round "9"]
[White "Dvacetsekund"]
[Black "David_Mic"]
[Result "1/2-1/2"]
[WhiteElo "2192"]
[BlackElo "2001"]
[TimeControl "180+1"]
[EndTime "10:29:48 PDT"]
[Termination "Remíza opakováním pozice"]

1. e4 {[%clk 0:03:00.9]} 1... c5 {[%clk 0:02:59.4]} 2. Nf3 {[%clk 0:03:01.3]}
2... Nc6 {[%clk 0:02:59]} 3. Nc3 {[%clk 0:02:58.9]} 3... Nf6 {[%clk 0:02:58.1]}
4. d4 {[%clk 0:02:54.7]} 4... cxd4 {[%clk 0:02:57.4]} 5. Nxd4 {[%clk 0:02:55.6]}
5... e5 {[%clk 0:02:56.8]} 6. Ndb5 {[%clk 0:02:55.6]} 6... d6 {[%clk 0:02:56.7]}
7. Bg5 {[%clk 0:02:54.6]} 7... a6 {[%clk 0:02:56.2]} 8. Na3 {[%clk 0:02:54.8]}
8... b5 {[%clk 0:02:55.8]} 9. Bxf6 {[%clk 0:02:55.5]} 9... gxf6 {[%clk 0:02:55]}
10. Nd5 {[%clk 0:02:56.1]} 10... Bg7 {[%clk 0:02:52]} 11. c3 {[%clk 0:02:56]}
11... f5 {[%clk 0:02:51.4]} 12. exf5 {[%clk 0:02:54.3]} 12... Bxf5 {[%clk
0:02:50]} 13. Nc2 {[%clk 0:02:55]} 13... Be6 {[%clk 0:02:49.3]} 14. g3 {[%clk
0:02:51]} 14... Ne7 {[%clk 0:02:48.5]} 15. Bg2 {[%clk 0:02:47.8]} 15... Rb8
{[%clk 0:02:40.3]} 16. Nce3 {[%clk 0:02:34.4]} 16... Nxd5 {[%clk 0:02:39.2]} 17.
Nxd5 {[%clk 0:02:32.9]} 17... O-O {[%clk 0:02:39]} 18. O-O {[%clk 0:02:31.4]}
18... a5 {[%clk 0:02:38.7]} 19. Qd2 {[%clk 0:02:16.5]} 19... f5 {[%clk
0:02:37.8]} 20. a4 {[%clk 0:02:04.8]} 20... bxa4 {[%clk 0:02:31.8]} 21. Rxa4
{[%clk 0:02:03.3]} 21... Rf7 {[%clk 0:02:30]} 22. Rfa1 {[%clk 0:01:59.7]} 22...
Rfb7 {[%clk 0:02:10.4]} 23. R1a2 {[%clk 0:01:57.1]} 23... Rb5 {[%clk 0:02:03.4]}
24. c4 {[%clk 0:01:52.5]} 24... Rc5 {[%clk 0:01:54.1]} 25. Rxa5 {[%clk
0:01:39.6]} 25... Rxa5 {[%clk 0:01:33.9]} 26. Rxa5 {[%clk 0:01:32.1]} 26... Rxb2
{[%clk 0:01:32.3]} 27. Qxb2 {[%clk 0:01:28.7]} 27... Qxa5 {[%clk 0:01:31.5]} 28.
Qb8+ {[%clk 0:01:26.2]} 28... Bf8 {[%clk 0:01:30.9]} 29. Nf6+ {[%clk 0:00:55.5]}
29... Kf7 {[%clk 0:01:14]} 30. Bd5 {[%clk 0:00:43.8]} 30... Bxd5 {[%clk
0:00:51.9]} 31. Nxd5 {[%clk 0:00:44.7]} 31... Qe1+ {[%clk 0:00:50.9]} 32. Kg2
{[%clk 0:00:44.6]} 32... Qe4+ {[%clk 0:00:50.7]} 33. Kg1 {[%clk 0:00:42.7]}
33... Qe1+ {[%clk 0:00:50.1]} 34. Kg2 {[%clk 0:00:42.8]} 34... Qe4+ {[%clk
0:00:49.2]} 35. Kg1 {[%clk 0:00:37]} 35... Qe1+ {[%clk 0:00:28.8]} 1/2-1/2

[Event "Betsys MČR v online bleskovém šachu 2021"]
[Site "Chess.com"]
[Date "2021.04.17"]
[Round "9"]
[White "l_pavlasek"]
[Black "JIDEMONI"]
[Result "0-1"]
[WhiteElo "1663"]
[BlackElo "1885"]
[TimeControl "180+1"]
[EndTime "10:29:49 PDT"]
[Termination "Uživatel JIDEMONI zvítězil po vzdání soupeře"]

1. e4 {[%clk 0:03:00.9]} 1... e6 {[%clk 0:02:59.4]} 2. d4 {[%clk 0:02:56.7]}
2... d5 {[%clk 0:02:59.1]} 3. exd5 {[%clk 0:02:56.7]} 3... exd5 {[%clk
0:02:58.4]} 4. Nf3 {[%clk 0:02:56.7]} 4... Bd6 {[%clk 0:02:57.9]} 5. Bd3 {[%clk
0:02:55.2]} 5... Ne7 {[%clk 0:02:57.3]} 6. O-O {[%clk 0:02:51.4]} 6... Bf5
{[%clk 0:02:56.1]} 7. Bg5 {[%clk 0:02:45]} 7... f6 {[%clk 0:02:56.1]} 8. Bxf5
{[%clk 0:02:27.5]} 8... Nxf5 {[%clk 0:02:55.1]} 9. Re1+ {[%clk 0:02:25.4]} 9...
Ne7 {[%clk 0:02:55]} 10. Bd2 {[%clk 0:02:17.1]} 10... O-O {[%clk 0:02:54.2]} 11.
c3 {[%clk 0:02:12.2]} 11... Qd7 {[%clk 0:02:53.6]} 12. Be3 {[%clk 0:02:01.6]}
12... c6 {[%clk 0:02:53.3]} 13. Nbd2 {[%clk 0:02:00.5]} 13... Na6 {[%clk
0:02:53]} 14. Nb3 {[%clk 0:01:56.5]} 14... b6 {[%clk 0:02:51.3]} 15. Qd2 {[%clk
0:01:53.7]} 15... Nc7 {[%clk 0:02:49.2]} 16. Re2 {[%clk 0:01:49.6]} 16... Rae8
{[%clk 0:02:47.9]} 17. Rae1 {[%clk 0:01:48.8]} 17... Nf5 {[%clk 0:02:46.7]} 18.
Bf4 {[%clk 0:01:42]} 18... Bxf4 {[%clk 0:02:44.6]} 19. Qxf4 {[%clk 0:01:40.4]}
19... Nd6 {[%clk 0:02:45.1]} 20. Rxe8 {[%clk 0:01:35.2]} 20... Rxe8 {[%clk
0:02:43.1]} 21. Rxe8+ {[%clk 0:01:32.1]} 21... Ncxe8 {[%clk 0:02:42.9]} 22. h3
{[%clk 0:01:26.7]} 22... Qe6 {[%clk 0:02:42.5]} 23. Qd2 {[%clk 0:01:17.8]} 23...
Nc4 {[%clk 0:02:39]} 24. Qc1 {[%clk 0:01:11.6]} 24... Ned6 {[%clk 0:02:38.2]}
25. Nbd2 {[%clk 0:01:09.1]} 25... g6 {[%clk 0:02:30.9]} 26. b3 {[%clk
0:01:06.2]} 26... Nxd2 {[%clk 0:02:28.4]} 27. Qxd2 {[%clk 0:01:05.6]} 27... Kg7
{[%clk 0:02:28.5]} 28. Kf1 {[%clk 0:01:04.1]} 28... a5 {[%clk 0:02:27.4]} 29. h4
{[%clk 0:00:52.6]} 29... h5 {[%clk 0:02:26.2]} 30. a3 {[%clk 0:00:48.1]} 30...
Qe4 {[%clk 0:02:20.9]} 31. Qe2 {[%clk 0:00:41.7]} 31... Qxe2+ {[%clk 0:02:14.4]}
32. Kxe2 {[%clk 0:00:41.1]} 32... Nb5 {[%clk 0:02:13.9]} 33. c4 {[%clk
0:00:31.3]} 33... dxc4 {[%clk 0:02:10.4]} 34. bxc4 {[%clk 0:00:31.1]} 34... Nxa3
{[%clk 0:02:10.4]} 35. Kd3 {[%clk 0:00:28.1]} 35... b5 {[%clk 0:01:57.1]} 36.
cxb5 {[%clk 0:00:25.6]} 36... cxb5 {[%clk 0:01:56.6]} 37. Kc3 {[%clk 0:00:25.6]}
37... Kf7 {[%clk 0:01:56.4]} 38. Nd2 {[%clk 0:00:24.2]} 38... Ke6 {[%clk
0:01:54]} 39. Kb3 {[%clk 0:00:24.2]} 39... Nc4 {[%clk 0:01:38.8]} 40. Nxc4
{[%clk 0:00:19.4]} 40... bxc4+ {[%clk 0:01:38.9]} 41. Kxc4 {[%clk 0:00:19.5]}
41... a4 {[%clk 0:01:39]} 42. Kb4 {[%clk 0:00:17.4]} 42... Kd5 {[%clk 0:01:39]}
43. Kxa4 {[%clk 0:00:14.8]} 43... Kxd4 {[%clk 0:01:39.9]} 44. Kb3 {[%clk
0:00:14.1]} 44... Kd3 {[%clk 0:01:40]} 45. f3 {[%clk 0:00:12.5]} 45... Ke3
{[%clk 0:01:39.3]} 46. Kc3 {[%clk 0:00:11.3]} 46... g5 {[%clk 0:01:37.6]} 47.
hxg5 {[%clk 0:00:09.1]} 47... fxg5 {[%clk 0:01:37.8]} 48. Kc2 {[%clk 0:00:08.1]}
48... h4 {[%clk 0:01:37.6]} 49. Kd1 {[%clk 0:00:07.2]} 49... Kf2 {[%clk
0:01:37.7]} 50. f4 {[%clk 0:00:06.9]} 50... gxf4 {[%clk 0:01:36.9]} 0-1

[Event "Betsys MČR v online bleskovém šachu 2021"]
[Site "Chess.com"]
[Date "2021.04.17"]
[Round "9"]
[White "g4g5g4g5"]
[Black "sodikus"]
[Result "0-1"]
[WhiteElo "2000"]
[BlackElo "2253"]
[TimeControl "180+1"]
[EndTime "10:29:50 PDT"]
[Termination "Uživatel sodikus zvítězil matem"]

1. e4 {[%clk 0:02:55.2]} 1... e5 {[%clk 0:02:59.7]} 2. Nf3 {[%clk 0:02:54.2]}
2... Nc6 {[%clk 0:02:59.9]} 3. Bb5 {[%clk 0:02:53.5]} 3... a6 {[%clk 0:02:59.3]}
4. Ba4 {[%clk 0:02:53.7]} 4... Nf6 {[%clk 0:02:59.2]} 5. O-O {[%clk 0:02:53.8]}
5... Be7 {[%clk 0:02:58.5]} 6. Re1 {[%clk 0:02:53.5]} 6... b5 {[%clk 0:02:58.7]}
7. Bb3 {[%clk 0:02:53.5]} 7... d6 {[%clk 0:02:59.6]} 8. c3 {[%clk 0:02:53.2]}
8... O-O {[%clk 0:02:59.4]} 9. h3 {[%clk 0:02:53.3]} 9... Na5 {[%clk 0:02:54.1]}
10. Bc2 {[%clk 0:02:53.1]} 10... c5 {[%clk 0:02:54.4]} 11. d4 {[%clk 0:02:51.3]}
11... Qc7 {[%clk 0:02:47.1]} 12. Nbd2 {[%clk 0:02:50.1]} 12... cxd4 {[%clk
0:02:46]} 13. cxd4 {[%clk 0:02:49.7]} 13... Rd8 {[%clk 0:02:46.9]} 14. d5 {[%clk
0:02:47.1]} 14... Bd7 {[%clk 0:02:31.7]} 15. b3 {[%clk 0:02:46.7]} 15... Rdc8
{[%clk 0:02:26.9]} 16. Bd3 {[%clk 0:02:46.4]} 16... Qc3 {[%clk 0:02:19.4]} 17.
Nf1 {[%clk 0:02:13.3]} 17... Qxa1 {[%clk 0:02:17.3]} 18. Ne3 {[%clk 0:01:47]}
18... Qxa2 {[%clk 0:02:08.9]} 19. Bd2 {[%clk 0:01:41.7]} 19... Nxb3 {[%clk
0:02:05.8]} 20. Bb1 {[%clk 0:01:34.4]} 20... Qb2 {[%clk 0:01:56.7]} 21. Nf5
{[%clk 0:00:54.6]} 21... Bxf5 {[%clk 0:01:54.5]} 22. exf5 {[%clk 0:00:54.4]}
22... Nxd2 {[%clk 0:01:48]} 23. Nxd2 {[%clk 0:00:53.8]} 23... Nxd5 {[%clk
0:01:48.1]} 24. Ne4 {[%clk 0:00:44.4]} 24... Nc3 {[%clk 0:01:40.5]} 25. Qg4
{[%clk 0:00:40.1]} 25... Nxb1 {[%clk 0:01:33.1]} 26. f6 {[%clk 0:00:38.6]} 26...
Bf8 {[%clk 0:01:06.2]} 27. Nxd6 {[%clk 0:00:35.3]} 27... Rc1 {[%clk 0:00:55.9]}
28. Nf5 {[%clk 0:00:25]} 28... Rxe1+ {[%clk 0:00:54.3]} 29. Kh2 {[%clk
0:00:24.6]} 29... Rh1+ {[%clk 0:00:41.1]} 30. Kg3 {[%clk 0:00:18.7]} 30... Qc3+
{[%clk 0:00:36.6]} 31. f3 {[%clk 0:00:18.4]} 31... Qe1# {[%clk 0:00:35.6]} 0-1

[Event "Betsys MČR v online bleskovém šachu 2021"]
[Site "Chess.com"]
[Date "2021.04.17"]
[Round "9"]
[White "Smetanka674"]
[Black "Mikkes33"]
[Result "1-0"]
[WhiteElo "1762"]
[BlackElo "1493"]
[TimeControl "180+1"]
[EndTime "10:29:50 PDT"]
[Termination "Uživatel Smetanka674 zvítězil na čas"]

1. d4 {[%clk 0:03:00.9]} 1... Nf6 {[%clk 0:02:58.1]} 2. c4 {[%clk 0:03:00.9]}
2... e6 {[%clk 0:02:56.9]} 3. Nc3 {[%clk 0:03:00.8]} 3... d5 {[%clk 0:02:54.7]}
4. Nf3 {[%clk 0:03:00.5]} 4... b6 {[%clk 0:02:53.8]} 5. Bg5 {[%clk 0:02:58.6]}
5... Bb7 {[%clk 0:02:52.3]} 6. e3 {[%clk 0:02:53.9]} 6... Be7 {[%clk 0:02:50.7]}
7. Qc2 {[%clk 0:02:49.1]} 7... Nbd7 {[%clk 0:02:49.1]} 8. Bd3 {[%clk 0:02:43.7]}
8... O-O {[%clk 0:02:47.9]} 9. O-O {[%clk 0:02:42]} 9... c5 {[%clk 0:02:46]} 10.
dxc5 {[%clk 0:02:39.6]} 10... bxc5 {[%clk 0:02:43.4]} 11. cxd5 {[%clk
0:02:38.9]} 11... exd5 {[%clk 0:02:39.3]} 12. Rfd1 {[%clk 0:02:29.5]} 12... Rc8
{[%clk 0:02:38.1]} 13. Qa4 {[%clk 0:02:21.4]} 13... a6 {[%clk 0:02:31.4]} 14.
Rac1 {[%clk 0:02:20.4]} 14... Qb6 {[%clk 0:02:14.1]} 15. Qc2 {[%clk 0:02:08]}
15... d4 {[%clk 0:02:10.9]} 16. exd4 {[%clk 0:02:04.9]} 16... Bxf3 {[%clk
0:02:09.3]} 17. gxf3 {[%clk 0:02:02]} 17... cxd4 {[%clk 0:02:08.1]} 18. Qe2
{[%clk 0:01:50.2]} 18... dxc3 {[%clk 0:01:57.7]} 19. Qxe7 {[%clk 0:01:48.9]}
19... cxb2 {[%clk 0:01:56.6]} 20. Rb1 {[%clk 0:01:40.7]} 20... Rfe8 {[%clk
0:01:45.9]} 21. Qa3 {[%clk 0:01:37.2]} 21... Qd4 {[%clk 0:01:32.2]} 22. Bxh7+
{[%clk 0:01:33.3]} 22... Nxh7 {[%clk 0:00:53.9]} 23. Rxd4 {[%clk 0:01:34.2]}
23... Nxg5 {[%clk 0:00:53.3]} 24. Rxd7 {[%clk 0:01:19.9]} 24... Nxf3+ {[%clk
0:00:52.5]} 25. Kg2 {[%clk 0:01:18.3]} 25... Ne1+ {[%clk 0:00:45.8]} 26. Rxe1
{[%clk 0:01:09.3]} 26... Rxe1 {[%clk 0:00:42.2]} 27. Qxb2 {[%clk 0:01:09.3]}
27... Rec1 {[%clk 0:00:37.4]} 28. Qb7 {[%clk 0:01:04.7]} 28... Rf8 {[%clk
0:00:34.2]} 29. Qxa6 {[%clk 0:01:02.2]} 29... Rc2 {[%clk 0:00:32.5]} 30. a4
{[%clk 0:00:59.6]} 30... g6 {[%clk 0:00:31.3]} 31. Qb5 {[%clk 0:00:53.3]} 1-0

[Event "Betsys MČR v online bleskovém šachu 2021"]
[Site "Chess.com"]
[Date "2021.04.17"]
[Round "9"]
[White "Cenisuh"]
[Black "Koli05"]
[Result "0-1"]
[WhiteElo "1611"]
[BlackElo "1850"]
[TimeControl "180+1"]
[EndTime "10:29:51 PDT"]
[Termination "Uživatel Koli05 zvítězil na čas"]

1. d4 {[%clk 0:03:00.9]} 1... d5 {[%clk 0:02:59.2]} 2. Nf3 {[%clk 0:03:00.9]}
2... e6 {[%clk 0:02:58.9]} 3. g3 {[%clk 0:03:00.8]} 3... Nf6 {[%clk 0:02:57.4]}
4. Bg2 {[%clk 0:03:01]} 4... c5 {[%clk 0:02:57.8]} 5. O-O {[%clk 0:02:58.3]}
5... Nc6 {[%clk 0:02:57.4]} 6. c4 {[%clk 0:02:57.4]} 6... Be7 {[%clk 0:02:49.5]}
7. cxd5 {[%clk 0:02:55.6]} 7... Nxd5 {[%clk 0:02:45.5]} 8. Nc3 {[%clk 0:02:40]}
8... Bf6 {[%clk 0:02:41.6]} 9. Nxd5 {[%clk 0:02:32.7]} 9... Qxd5 {[%clk
0:02:33.6]} 10. dxc5 {[%clk 0:02:30.8]} 10... Qxc5 {[%clk 0:02:29.1]} 11. Be3
{[%clk 0:02:08.5]} 11... Qe7 {[%clk 0:02:27.8]} 12. Rb1 {[%clk 0:02:06.2]} 12...
O-O {[%clk 0:02:25.3]} 13. Qc2 {[%clk 0:01:59]} 13... e5 {[%clk 0:02:16.8]} 14.
Bc5 {[%clk 0:01:58.4]} 14... Qe6 {[%clk 0:02:11.6]} 15. Bxf8 {[%clk 0:01:58]}
15... Kxf8 {[%clk 0:02:10.1]} 16. e3 {[%clk 0:01:54.1]} 16... Qxa2 {[%clk
0:02:05.2]} 17. Rfd1 {[%clk 0:01:32]} 17... Be6 {[%clk 0:02:00.2]} 18. Ra1
{[%clk 0:01:04.5]} 18... Qc4 {[%clk 0:01:18.4]} 19. Nd2 {[%clk 0:00:54.7]} 19...
Qxc2 {[%clk 0:01:17.1]} 20. Ne4 {[%clk 0:00:48.1]} 20... Bf5 {[%clk 0:01:08.2]}
21. Nxf6 {[%clk 0:00:38.4]} 21... gxf6 {[%clk 0:01:07]} 22. Rdc1 {[%clk
0:00:12.2]} 22... Qxb2 {[%clk 0:01:05.7]} 23. e4 {[%clk 0:00:12.5]} 23... Be6
{[%clk 0:01:03.4]} 24. Rab1 {[%clk 0:00:12.4]} 24... Qd2 {[%clk 0:01:02.4]} 25.
Rd1 {[%clk 0:00:12.1]} 25... Qa2 {[%clk 0:00:59.3]} 26. Rxb7 {[%clk 0:00:07.6]}
26... Nd4 {[%clk 0:00:57.5]} 27. Rdb1 {[%clk 0:00:02.5]} 27... a5 {[%clk
0:00:49.9]} 28. h3 {[%clk 0:00:01.4]} 28... a4 {[%clk 0:00:49.4]} 0-1

[Event "Betsys MČR v online bleskovém šachu 2021"]
[Site "Chess.com"]
[Date "2021.04.17"]
[Round "9"]
[White "adasmrazek"]
[Black "JanBaraCZE"]
[Result "0-1"]
[WhiteElo "1299"]
[BlackElo "1595"]
[TimeControl "180+1"]
[EndTime "10:29:51 PDT"]
[Termination "Uživatel JanBaraCZE zvítězil po vzdání soupeře"]

1. d4 {[%clk 0:03:00.9]} 1... e5 {[%clk 0:03:00.7]} 2. dxe5 {[%clk 0:02:55.1]}
2... Nc6 {[%clk 0:02:56.9]} 3. Nf3 {[%clk 0:02:53.4]} 3... d5 {[%clk 0:02:54.8]}
4. Nc3 {[%clk 0:02:49.9]} 4... d4 {[%clk 0:02:49.1]} 5. Ne4 {[%clk 0:02:44.7]}
5... Bf5 {[%clk 0:02:42.8]} 6. Ng3 {[%clk 0:02:41.2]} 6... Bg6 {[%clk
0:02:39.6]} 7. e3 {[%clk 0:02:34.6]} 7... dxe3 {[%clk 0:02:36.6]} 8. Bxe3 {[%clk
0:02:31.5]} 8... Qxd1+ {[%clk 0:02:34.5]} 9. Rxd1 {[%clk 0:02:28.3]} 9... Bxc2
{[%clk 0:02:32.5]} 10. Rd2 {[%clk 0:02:25.4]} 10... Bg6 {[%clk 0:02:29.8]} 11.
Bb5 {[%clk 0:02:20.2]} 11... Bb4 {[%clk 0:02:28.7]} 12. Bxc6+ {[%clk 0:02:10.1]}
12... bxc6 {[%clk 0:02:27.1]} 13. O-O {[%clk 0:02:09.4]} 13... Bxd2 {[%clk
0:02:24.5]} 14. Bxd2 {[%clk 0:02:09.2]} 14... Ne7 {[%clk 0:02:22.8]} 15. Rc1
{[%clk 0:02:05.4]} 15... O-O {[%clk 0:02:20.4]} 16. Nd4 {[%clk 0:02:00.4]} 16...
c5 {[%clk 0:02:18]} 17. Nb3 {[%clk 0:01:55.4]} 17... Nc6 {[%clk 0:02:01.2]} 18.
Rxc5 {[%clk 0:01:54.1]} 18... Ne7 {[%clk 0:01:53.4]} 19. Rxc7 {[%clk 0:01:53.9]}
19... Rfe8 {[%clk 0:01:51.9]} 20. Bb4 {[%clk 0:01:53]} 20... Nd5 {[%clk
0:01:47.2]} 21. Rb7 {[%clk 0:01:45.2]} 21... Nxb4 {[%clk 0:01:45.2]} 22. Rxb4
{[%clk 0:01:45.1]} 22... Rac8 {[%clk 0:01:40.9]} 23. h3 {[%clk 0:01:42.9]} 23...
Rc2 {[%clk 0:01:37.2]} 24. Ne4 {[%clk 0:01:33.8]} 24... Bxe4 {[%clk 0:01:35.3]}
25. Rxe4 {[%clk 0:01:33.1]} 25... Rxb2 {[%clk 0:01:34]} 26. Ra4 {[%clk
0:01:20.1]} 26... Rxe5 {[%clk 0:01:30.7]} 27. Rxa7 {[%clk 0:01:19.2]} 27... h6
{[%clk 0:01:27.3]} 28. Nd4 {[%clk 0:01:17.4]} 28... Re1+ {[%clk 0:01:24.7]} 29.
Kh2 {[%clk 0:01:16.3]} 29... Rxf2 {[%clk 0:01:22.9]} 30. Ra8+ {[%clk 0:01:15.7]}
30... Kh7 {[%clk 0:01:20.8]} 31. Kg3 {[%clk 0:01:16]} 31... Rb2 {[%clk
0:01:10.7]} 32. Ra7 {[%clk 0:01:14.5]} 32... Ra1 {[%clk 0:00:53.8]} 33. a3
{[%clk 0:01:06.4]} 33... Rd2 {[%clk 0:00:49.3]} 34. Nf5 {[%clk 0:01:03]} 34...
Rd3+ {[%clk 0:00:42.8]} 35. Kh2 {[%clk 0:00:58.2]} 35... Rdxa3 {[%clk
0:00:40.8]} 36. Rxf7 {[%clk 0:00:56.3]} 36... Ra7 {[%clk 0:00:40.4]} 37. Ne7
{[%clk 0:00:54.5]} 37... Re1 {[%clk 0:00:35.8]} 0-1